[Event "Late-Titled-Tuesday-Blitz-May-28-2024"]
[Site "Chess.com"]
[Date "2024.05.28"]
[Round "9"]
[White "rionelG"]
[Black "Synctel"]
[Result "0-1"]
[WhiteElo "2281"]
[BlackElo "2092"]
[TimeControl "180+1"]
[EndTime "15:45:06 PDT"]
[Termination "Synctel won by checkmate"]

1. d4 {[%clk 0:03:00.9]} 1... Nf6 {[%clk 0:02:56.7]} 2. c4 {[%clk 0:03:01.1]}
2... e6 {[%clk 0:02:56.7]} 3. Nc3 {[%clk 0:02:54.3]} 3... Bb4 {[%clk 0:02:56.7]}
4. a3 {[%clk 0:02:53.3]} 4... Bxc3+ {[%clk 0:02:56.4]} 5. bxc3 {[%clk
0:02:54.2]} 5... d6 {[%clk 0:02:47.6]} 6. Qc2 {[%clk 0:02:30.2]} 6... h6 {[%clk
0:02:35.6]} 7. e4 {[%clk 0:02:24.6]} 7... e5 {[%clk 0:02:31.2]} 8. Ne2 {[%clk
0:02:20.8]} 8... Nc6 {[%clk 0:02:20.1]} 9. Ng3 {[%clk 0:02:11.4]} 9... exd4
{[%clk 0:02:13.4]} 10. Bd3 {[%clk 0:01:52.5]} 10... O-O {[%clk 0:01:42.1]} 11.
O-O {[%clk 0:01:50.7]} 11... Ng4 {[%clk 0:01:28.4]} 12. cxd4 {[%clk 0:01:28.3]}
12... Nxd4 {[%clk 0:01:23]} 13. Qc3 {[%clk 0:01:28.7]} 13... c5 {[%clk
0:01:17.3]} 14. Be3 {[%clk 0:01:26]} 14... Qf6 {[%clk 0:01:09.7]} 15. h3 {[%clk
0:01:18.8]} 15... Nf3+ {[%clk 0:01:06.6]} 16. gxf3 {[%clk 0:01:16.5]} 16... Qxc3
{[%clk 0:01:07.1]} 17. hxg4 {[%clk 0:00:59.2]} 17... Qxd3 {[%clk 0:01:05.4]} 18.
Rfd1 {[%clk 0:00:58.5]} 18... Qxc4 {[%clk 0:01:04.4]} 19. Rxd6 {[%clk
0:00:58.1]} 19... b6 {[%clk 0:00:51.9]} 20. Kg2 {[%clk 0:00:49.9]} 20... Be6
{[%clk 0:00:51.9]} 21. Rad1 {[%clk 0:00:47.8]} 21... Qa4 {[%clk 0:00:40.2]} 22.
Bc1 {[%clk 0:00:23.6]} 22... c4 {[%clk 0:00:38.2]} 23. Ne2 {[%clk 0:00:20.4]}
23... b5 {[%clk 0:00:35.6]} 24. Kg3 {[%clk 0:00:17.1]} 24... Qa5 {[%clk
0:00:34.8]} 25. f4 {[%clk 0:00:16.3]} 25... Rfd8 {[%clk 0:00:34.5]} 26. f5
{[%clk 0:00:13.6]} 26... Rxd6 {[%clk 0:00:34.6]} 27. Rxd6 {[%clk 0:00:13.3]}
27... Qc7 {[%clk 0:00:34.7]} 28. e5 {[%clk 0:00:13.3]} 28... Bd5 {[%clk
0:00:31.8]} 29. Bf4 {[%clk 0:00:13.2]} 29... Qc5 {[%clk 0:00:27.7]} 30. Nc3
{[%clk 0:00:12.4]} 30... Bb7 {[%clk 0:00:26.5]} 31. e6 {[%clk 0:00:09.7]} 31...
Qxa3 {[%clk 0:00:25.6]} 32. exf7+ {[%clk 0:00:06.7]} 32... Kxf7 {[%clk
0:00:24.6]} 33. Rd7+ {[%clk 0:00:07]} 33... Kg8 {[%clk 0:00:25]} 34. Be5 {[%clk
0:00:06.2]} 34... b4 {[%clk 0:00:17.3]} 35. Rxg7+ {[%clk 0:00:05.6]} 35... Kf8
{[%clk 0:00:17.8]} 36. Rxb7 {[%clk 0:00:05.2]} 36... bxc3 {[%clk 0:00:17.3]} 37.
Kh4 {[%clk 0:00:02.1]} 37... c2 {[%clk 0:00:17.8]} 38. Bf4 {[%clk 0:00:01.4]}
38... Qe7+ {[%clk 0:00:17.6]} 39. Kh3 {[%clk 0:00:01]} 39... Qxb7 {[%clk
0:00:17.3]} 40. Bxh6+ {[%clk 0:00:01]} 40... Qg7 {[%clk 0:00:17.3]} 41. Bf4
{[%clk 0:00:01.9]} 41... Qh7+ {[%clk 0:00:17]} 42. Kg3 {[%clk 0:00:02.4]} 42...
Qb7 {[%clk 0:00:16.5]} 43. f3 {[%clk 0:00:02.3]} 43... Qb3 {[%clk 0:00:17.4]}
44. g5 {[%clk 0:00:01.8]} 44... Qb1 {[%clk 0:00:17]} 45. g6 {[%clk 0:00:01.5]}
45... c1=Q {[%clk 0:00:17.9]} 46. Bxc1 {[%clk 0:00:01.7]} 46... Qxc1 {[%clk
0:00:17.8]} 47. Kg4 {[%clk 0:00:02.2]} 47... Qh6 {[%clk 0:00:17.9]} 48. f4
{[%clk 0:00:01.5]} 48... Kg7 {[%clk 0:00:18.3]} 49. Kf3 {[%clk 0:00:02.3]} 49...
Kf6 {[%clk 0:00:18.7]} 50. Kg4 {[%clk 0:00:03.2]} 50... a5 {[%clk 0:00:17.9]}
51. g7 {[%clk 0:00:04.1]} 51... c3 {[%clk 0:00:18.5]} 52. Kf3 {[%clk 0:00:05]}
52... Qxg7 {[%clk 0:00:18.2]} 53. Ke4 {[%clk 0:00:05.6]} 53... Qb7+ {[%clk
0:00:19.1]} 54. Kd3 {[%clk 0:00:05.2]} 54... Qb2 {[%clk 0:00:20]} 55. Kc4 {[%clk
0:00:05.3]} 55... Qd2 {[%clk 0:00:20.9]} 56. Kc5 {[%clk 0:00:05.2]} 56... c2
{[%clk 0:00:21.8]} 57. Kb6 {[%clk 0:00:05.9]} 57... Rd8 {[%clk 0:00:22]} 58. Kb5
{[%clk 0:00:06.8]} 58... Qd5+ {[%clk 0:00:21.8]} 59. Ka4 {[%clk 0:00:07.7]}
59... Rc8 {[%clk 0:00:21.4]} 60. Ka3 {[%clk 0:00:08]} 60... c1=Q+ {[%clk
0:00:21.6]} 61. Ka4 {[%clk 0:00:07.6]} 61... Qdc4+ {[%clk 0:00:21.7]} 62. Kxa5
{[%clk 0:00:07.7]} 62... Qb4+ {[%clk 0:00:22.2]} 63. Ka6 {[%clk 0:00:08]} 63...
Qa1# {[%clk 0:00:22.2]} 0-1

[Event "Late-Titled-Tuesday-Blitz-May-28-2024"]
[Site "Chess.com"]
[Date "2024.05.28"]
[Round "9"]
[White "lrjchess"]
[Black "NMJeevanK"]
[Result "0-1"]
[WhiteElo "2505"]
[BlackElo "2689"]
[TimeControl "180+1"]
[EndTime "15:45:18 PDT"]
[Termination "NMJeevanK won by resignation"]

1. e4 {[%clk 0:02:58.8]} 1... e5 {[%clk 0:02:59.9]} 2. Nf3 {[%clk 0:02:57]} 2...
Nc6 {[%clk 0:03:00.4]} 3. Bc4 {[%clk 0:02:55.9]} 3... Be7 {[%clk 0:03:00]} 4.
O-O {[%clk 0:02:55.1]} 4... Nf6 {[%clk 0:03:00.7]} 5. Re1 {[%clk 0:02:54.6]}
5... O-O {[%clk 0:03:01]} 6. h3 {[%clk 0:02:54.9]} 6... d6 {[%clk 0:03:00.3]} 7.
c3 {[%clk 0:02:54.7]} 7... a6 {[%clk 0:02:58.1]} 8. d4 {[%clk 0:02:54.1]} 8...
exd4 {[%clk 0:02:55.6]} 9. cxd4 {[%clk 0:02:54.2]} 9... d5 {[%clk 0:02:56.2]}
10. exd5 {[%clk 0:02:51.7]} 10... Nxd5 {[%clk 0:02:57.1]} 11. Nc3 {[%clk
0:02:52.2]} 11... Be6 {[%clk 0:02:54.8]} 12. Bb3 {[%clk 0:02:51.4]} 12... Bb4
{[%clk 0:02:52.3]} 13. Bd2 {[%clk 0:02:49.8]} 13... Qd7 {[%clk 0:02:46.3]} 14.
a3 {[%clk 0:02:41.8]} 14... Bxc3 {[%clk 0:02:45.3]} 15. bxc3 {[%clk 0:02:41.7]}
15... b5 {[%clk 0:02:41.3]} 16. Ng5 {[%clk 0:02:40.9]} 16... Bf5 {[%clk
0:02:24.3]} 17. a4 {[%clk 0:02:40.9]} 17... h6 {[%clk 0:02:21.1]} 18. Ne4 {[%clk
0:02:40.4]} 18... Rad8 {[%clk 0:02:14.6]} 19. Nc5 {[%clk 0:02:38.5]} 19... Qd6
{[%clk 0:02:06.6]} 20. axb5 {[%clk 0:02:37.5]} 20... axb5 {[%clk 0:02:04.9]} 21.
Nb7 {[%clk 0:02:26.8]} 21... Qg6 {[%clk 0:02:01.9]} 22. Nxd8 {[%clk 0:02:26.8]}
22... Rxd8 {[%clk 0:02:02.8]} 23. Qf3 {[%clk 0:02:23.6]} 23... Nb6 {[%clk
0:01:55.4]} 24. g4 {[%clk 0:02:15.4]} 24... Bc8 {[%clk 0:01:47.5]} 25. Bf4
{[%clk 0:02:10.6]} 25... Qf6 {[%clk 0:01:32.6]} 26. Qe4 {[%clk 0:02:01.4]} 26...
Bb7 {[%clk 0:01:05.3]} 27. Bc2 {[%clk 0:01:53.5]} 27... g6 {[%clk 0:00:56]} 28.
Bxc7 {[%clk 0:01:44.8]} 28... Nxd4 {[%clk 0:00:50.5]} 29. Bxd8 {[%clk
0:01:24.5]} 29... Nf3+ {[%clk 0:00:50.7]} 30. Kf1 {[%clk 0:01:07.8]} 30... Nd2+
{[%clk 0:00:41.7]} 31. Kg1 {[%clk 0:01:01.4]} 31... Nf3+ {[%clk 0:00:41.3]} 32.
Kf1 {[%clk 0:01:00.9]} 32... Nd2+ {[%clk 0:00:38.2]} 33. Ke2 {[%clk 0:01:00.3]}
33... Qxc3 {[%clk 0:00:21.1]} 34. Qxb7 {[%clk 0:00:41.7]} 34... Qxc2 {[%clk
0:00:20.6]} 35. Rac1 {[%clk 0:00:41.5]} 35... Qa2 {[%clk 0:00:15.8]} 36. Qxb6
{[%clk 0:00:27.7]} 36... Nc4+ {[%clk 0:00:15.4]} 37. Kf1 {[%clk 0:00:28]} 37...
Nxb6 {[%clk 0:00:14.9]} 38. Bxb6 {[%clk 0:00:28.5]} 38... Qd5 {[%clk 0:00:10.2]}
39. Kg1 {[%clk 0:00:27]} 39... g5 {[%clk 0:00:05.8]} 40. Be3 {[%clk 0:00:21.6]}
40... Qf3 {[%clk 0:00:05.5]} 41. Kh2 {[%clk 0:00:16.7]} 41... b4 {[%clk
0:00:06]} 42. Rb1 {[%clk 0:00:16.7]} 42... Qe4 {[%clk 0:00:04]} 43. Rb2 {[%clk
0:00:16.8]} 43... Qe5+ {[%clk 0:00:02.8]} 44. Kg2 {[%clk 0:00:15.7]} 44... Qxb2
{[%clk 0:00:03.5]} 45. Rd1 {[%clk 0:00:14.8]} 45... b3 {[%clk 0:00:03.2]} 46.
Rd8+ {[%clk 0:00:14.9]} 46... Kh7 {[%clk 0:00:03.8]} 47. Bd4 {[%clk 0:00:14.7]}
47... Qc2 {[%clk 0:00:02.8]} 48. Rh8+ {[%clk 0:00:14.6]} 48... Kg6 {[%clk
0:00:02.7]} 49. Rg8+ {[%clk 0:00:15.1]} 49... Kh7 {[%clk 0:00:03.3]} 50. Rh8+
{[%clk 0:00:14.2]} 50... Kg6 {[%clk 0:00:03.7]} 51. Rg8+ {[%clk 0:00:14.1]}
51... Kh7 {[%clk 0:00:04.4]} 52. Rg7+ {[%clk 0:00:10.1]} 52... Kh8 {[%clk
0:00:05]} 53. Rxg5+ {[%clk 0:00:10.3]} 53... Kh7 {[%clk 0:00:04.8]} 54. Rg7+
{[%clk 0:00:11]} 54... Kh8 {[%clk 0:00:05.3]} 55. Rg6+ {[%clk 0:00:04.1]} 55...
Kh7 {[%clk 0:00:05.5]} 56. Rg7+ {[%clk 0:00:04.6]} 56... Kh8 {[%clk 0:00:06.1]}
57. Rxf7+ {[%clk 0:00:05.5]} 57... Kg8 {[%clk 0:00:06.5]} 58. Rg7+ {[%clk
0:00:05.9]} 58... Kf8 {[%clk 0:00:07.1]} 59. Rd7 {[%clk 0:00:05.6]} 59... Qc6+
{[%clk 0:00:06.4]} 60. Kg3 {[%clk 0:00:05.2]} 60... Qxd7 {[%clk 0:00:07]} 61.
Bb2 {[%clk 0:00:05.6]} 61... Kf7 {[%clk 0:00:07.5]} 62. f4 {[%clk 0:00:05.7]}
62... Qd2 {[%clk 0:00:08]} 63. Kh4 {[%clk 0:00:06]} 0-1

[Event "Late-Titled-Tuesday-Blitz-May-28-2024"]
[Site "Chess.com"]
[Date "2024.05.28"]
[Round "9"]
[White "Slovineanu"]
[Black "MusicCityMaster"]
[Result "1-0"]
[WhiteElo "2561"]
[BlackElo "2399"]
[TimeControl "180+1"]
[EndTime "15:45:26 PDT"]
[Termination "Slovineanu won by checkmate"]

1. d4 {[%clk 0:02:58.5]} 1... Nf6 {[%clk 0:02:59.4]} 2. Nf3 {[%clk 0:02:57.4]}
2... g6 {[%clk 0:02:58.1]} 3. Nbd2 {[%clk 0:02:57.2]} 3... d5 {[%clk 0:02:56.9]}
4. e3 {[%clk 0:02:57.3]} 4... Bg7 {[%clk 0:02:56.7]} 5. b4 {[%clk 0:02:57.9]}
5... O-O {[%clk 0:02:56.3]} 6. c4 {[%clk 0:02:58]} 6... c6 {[%clk 0:02:54.6]} 7.
a4 {[%clk 0:02:56.9]} 7... dxc4 {[%clk 0:02:47.7]} 8. Bxc4 {[%clk 0:02:55.3]}
8... Nbd7 {[%clk 0:02:48.1]} 9. O-O {[%clk 0:02:54.2]} 9... Nb6 {[%clk
0:02:48.1]} 10. Be2 {[%clk 0:02:39.5]} 10... Bf5 {[%clk 0:02:44.1]} 11. Bb2
{[%clk 0:02:38.7]} 11... Ne4 {[%clk 0:02:42.2]} 12. a5 {[%clk 0:02:19.8]} 12...
Nd5 {[%clk 0:02:39.9]} 13. Nxe4 {[%clk 0:02:19.8]} 13... Bxe4 {[%clk 0:02:40.3]}
14. Nd2 {[%clk 0:02:19.9]} 14... Nf6 {[%clk 0:02:30.5]} 15. Nxe4 {[%clk
0:02:16.8]} 15... Nxe4 {[%clk 0:02:31.4]} 16. a6 {[%clk 0:02:07.7]} 16... b6
{[%clk 0:02:28.2]} 17. Bf3 {[%clk 0:02:02.4]} 17... Qd5 {[%clk 0:02:15.6]} 18.
Qc2 {[%clk 0:02:01.1]} 18... f5 {[%clk 0:02:15.1]} 19. Rfc1 {[%clk 0:01:59.1]}
19... Rac8 {[%clk 0:02:13.1]} 20. Qc4 {[%clk 0:01:33.7]} 20... b5 {[%clk
0:02:04.5]} 21. Qa2 {[%clk 0:01:11.5]} 21... e6 {[%clk 0:01:49.3]} 22. Bc3
{[%clk 0:01:08.6]} 22... Rf7 {[%clk 0:01:32.2]} 23. Be1 {[%clk 0:01:06.1]} 23...
Rd7 {[%clk 0:01:27.9]} 24. Qb1 {[%clk 0:01:03.8]} 24... e5 {[%clk 0:01:14.5]}
25. Rc5 {[%clk 0:01:00.5]} 25... Qf7 {[%clk 0:00:59.7]} 26. Bxe4 {[%clk
0:00:39.2]} 26... fxe4 {[%clk 0:01:00.6]} 27. dxe5 {[%clk 0:00:37.5]} 27... Qe6
{[%clk 0:00:49.2]} 28. Qxe4 {[%clk 0:00:32.4]} 28... Bf8 {[%clk 0:00:41.7]} 29.
Rc2 {[%clk 0:00:26]} 29... Rd5 {[%clk 0:00:40.4]} 30. f4 {[%clk 0:00:25.2]}
30... c5 {[%clk 0:00:37.3]} 31. Rac1 {[%clk 0:00:20.3]} 31... c4 {[%clk
0:00:36.8]} 32. Bc3 {[%clk 0:00:20.3]} 32... Rcd8 {[%clk 0:00:36.6]} 33. Rf2
{[%clk 0:00:19.4]} 33... Rd1+ {[%clk 0:00:34.9]} 34. Rxd1 {[%clk 0:00:19.4]}
34... Rxd1+ {[%clk 0:00:35.8]} 35. Rf1 {[%clk 0:00:19.5]} 35... Rxf1+ {[%clk
0:00:29.1]} 36. Kxf1 {[%clk 0:00:19]} 36... h5 {[%clk 0:00:20.2]} 37. h3 {[%clk
0:00:18.8]} 37... Qxa6 {[%clk 0:00:19.3]} 38. Kf2 {[%clk 0:00:16.5]} 38... Qe6
{[%clk 0:00:18.6]} 39. Kf3 {[%clk 0:00:14.2]} 39... a5 {[%clk 0:00:18.9]} 40.
bxa5 {[%clk 0:00:12.6]} 40... b4 {[%clk 0:00:19.5]} 41. Bd4 {[%clk 0:00:13]}
41... c3 {[%clk 0:00:19.1]} 42. g4 {[%clk 0:00:12.3]} 42... hxg4+ {[%clk
0:00:18.9]} 43. hxg4 {[%clk 0:00:12.6]} 43... Be7 {[%clk 0:00:16.8]} 44. f5
{[%clk 0:00:12.5]} 44... gxf5 {[%clk 0:00:16.1]} 45. gxf5 {[%clk 0:00:12.9]}
45... Qh6 {[%clk 0:00:16]} 46. f6 {[%clk 0:00:13.1]} 46... Qh1+ {[%clk
0:00:16.1]} 47. Kf4 {[%clk 0:00:12.7]} 47... Qh4+ {[%clk 0:00:14.7]} 48. Kf3
{[%clk 0:00:12.4]} 48... Qh1+ {[%clk 0:00:14.6]} 49. Kf4 {[%clk 0:00:12.5]}
49... Qxe4+ {[%clk 0:00:15.1]} 50. Kxe4 {[%clk 0:00:12.7]} 50... Bd8 {[%clk
0:00:14.6]} 51. a6 {[%clk 0:00:11.7]} 51... c2 {[%clk 0:00:14.6]} 52. Bb2 {[%clk
0:00:11.8]} 52... Bb6 {[%clk 0:00:14.9]} 53. Kd3 {[%clk 0:00:11]} 53... b3
{[%clk 0:00:15.1]} 54. e6 {[%clk 0:00:10.8]} 54... Kf8 {[%clk 0:00:14.2]} 55. f7
{[%clk 0:00:10.8]} 55... Ke7 {[%clk 0:00:12.5]} 56. Ba3+ {[%clk 0:00:10.2]}
56... Kxe6 {[%clk 0:00:12.9]} 57. f8=Q {[%clk 0:00:10.5]} 57... Bxe3 {[%clk
0:00:11.4]} 58. Kxe3 {[%clk 0:00:10.2]} 58... Kd5 {[%clk 0:00:11.6]} 59. Qb4
{[%clk 0:00:09.3]} 59... Kc6 {[%clk 0:00:10.9]} 60. Qxb3 {[%clk 0:00:09.5]}
60... c1=Q+ {[%clk 0:00:10.9]} 61. Bxc1 {[%clk 0:00:09]} 61... Kc5 {[%clk
0:00:11.1]} 62. a7 {[%clk 0:00:09.2]} 62... Kd6 {[%clk 0:00:11]} 63. a8=Q {[%clk
0:00:09.4]} 63... Kc5 {[%clk 0:00:11.3]} 64. Qc8+ {[%clk 0:00:08.9]} 64... Kd6
{[%clk 0:00:11.7]} 65. Qd3+ {[%clk 0:00:08.8]} 65... Ke7 {[%clk 0:00:11.9]} 66.
Qc7+ {[%clk 0:00:09]} 66... Ke6 {[%clk 0:00:12.1]} 67. Qdd6+ {[%clk 0:00:09.3]}
67... Kf5 {[%clk 0:00:12.4]} 68. Qf7+ {[%clk 0:00:09.6]} 68... Kg5 {[%clk
0:00:12.5]} 69. Qdg6+ {[%clk 0:00:09.8]} 69... Kh4 {[%clk 0:00:12.9]} 70. Qfh7#
{[%clk 0:00:10.4]} 1-0

[Event "Late-Titled-Tuesday-Blitz-May-28-2024"]
[Site "Chess.com"]
[Date "2024.05.28"]
[Round "9"]
[White "Smiechu"]
[Black "Maect19"]
[Result "1-0"]
[WhiteElo "2461"]
[BlackElo "2297"]
[TimeControl "180+1"]
[EndTime "15:45:31 PDT"]
[Termination "Smiechu won by resignation"]

1. e4 {[%clk 0:02:55.3]} 1... e5 {[%clk 0:02:59.4]} 2. Nf3 {[%clk 0:02:54.5]}
2... Nc6 {[%clk 0:02:59.5]} 3. d4 {[%clk 0:02:26.3]} 3... exd4 {[%clk
0:02:57.9]} 4. Nxd4 {[%clk 0:02:26]} 4... Qf6 {[%clk 0:02:56]} 5. Nxc6 {[%clk
0:02:22.3]} 5... Bc5 {[%clk 0:02:53.2]} 6. Qf3 {[%clk 0:02:19]} 6... dxc6 {[%clk
0:02:51.2]} 7. Qxf6 {[%clk 0:02:11.4]} 7... Nxf6 {[%clk 0:02:50.3]} 8. f3 {[%clk
0:02:11.9]} 8... Be6 {[%clk 0:02:49.6]} 9. Nc3 {[%clk 0:02:11.5]} 9... O-O-O
{[%clk 0:02:48.2]} 10. Bg5 {[%clk 0:02:11.4]} 10... Be7 {[%clk 0:02:47]} 11. Be2
{[%clk 0:02:09.9]} 11... h6 {[%clk 0:02:46.5]} 12. Bh4 {[%clk 0:02:08.6]} 12...
g5 {[%clk 0:02:46.2]} 13. Bg3 {[%clk 0:02:05.1]} 13... Nh5 {[%clk 0:02:44.7]}
14. Kf2 {[%clk 0:02:01.3]} 14... Bc5+ {[%clk 0:02:41.3]} 15. Ke1 {[%clk
0:01:59.6]} 15... Bd6 {[%clk 0:02:37.6]} 16. Bxd6 {[%clk 0:01:55.6]} 16... cxd6
{[%clk 0:02:37.4]} 17. g3 {[%clk 0:01:54.9]} 17... d5 {[%clk 0:02:35.8]} 18. Rd1
{[%clk 0:01:53.6]} 18... Nf6 {[%clk 0:02:31.2]} 19. e5 {[%clk 0:01:49.9]} 19...
Nd7 {[%clk 0:02:29.6]} 20. f4 {[%clk 0:01:50]} 20... gxf4 {[%clk 0:02:28.9]} 21.
gxf4 {[%clk 0:01:50.9]} 21... Bf5 {[%clk 0:02:25.7]} 22. Bd3 {[%clk 0:01:48.8]}
22... Bxd3 {[%clk 0:02:24.6]} 23. cxd3 {[%clk 0:01:46.4]} 23... Rhg8 {[%clk
0:02:24]} 24. Kf2 {[%clk 0:01:45]} 24... Rg4 {[%clk 0:02:23.2]} 25. Kf3 {[%clk
0:01:43.1]} 25... Rdg8 {[%clk 0:02:22.1]} 26. Ne2 {[%clk 0:01:40.7]} 26... Nc5
{[%clk 0:02:18.1]} 27. d4 {[%clk 0:01:36.1]} 27... Ne4 {[%clk 0:02:12.9]} 28.
Rhg1 {[%clk 0:01:27.6]} 28... h5 {[%clk 0:01:59.7]} 29. h3 {[%clk 0:01:12.4]}
29... Rxg1 {[%clk 0:01:47.8]} 30. Rxg1 {[%clk 0:01:11.7]} 30... Nd2+ {[%clk
0:01:47.4]} 31. Kf2 {[%clk 0:01:08.1]} 31... Ne4+ {[%clk 0:01:42.9]} 32. Ke3
{[%clk 0:01:07.5]} 32... Rxg1 {[%clk 0:01:32.9]} 33. Nxg1 {[%clk 0:01:07.5]}
33... Kd7 {[%clk 0:01:32.6]} 34. f5 {[%clk 0:01:01.3]} 34... Ng3 {[%clk
0:01:27.8]} 35. Kf4 {[%clk 0:00:59.7]} 35... h4 {[%clk 0:01:24.7]} 36. Nf3
{[%clk 0:00:56.5]} 36... Ne2+ {[%clk 0:01:23.6]} 37. Ke3 {[%clk 0:00:54.5]}
37... Ng3 {[%clk 0:01:13]} 38. Nxh4 {[%clk 0:00:54.2]} 38... b6 {[%clk
0:01:13.4]} 39. Kf4 {[%clk 0:00:40]} 39... Ne2+ {[%clk 0:01:12.2]} 40. Kg5
{[%clk 0:00:40]} 40... Nxd4 {[%clk 0:01:10.8]} 41. Kf6 {[%clk 0:00:40.1]} 41...
Ke8 {[%clk 0:01:10.4]} 42. Ng2 {[%clk 0:00:36.1]} 42... Nf3 {[%clk 0:01:04]} 43.
h4 {[%clk 0:00:35]} 43... Nd2 {[%clk 0:01:03.5]} 44. h5 {[%clk 0:00:32.4]} 44...
Kf8 {[%clk 0:01:02.6]} 45. e6 {[%clk 0:00:24.3]} 45... Ne4+ {[%clk 0:01:02.5]}
46. Ke5 {[%clk 0:00:23.8]} 46... fxe6 {[%clk 0:00:58.6]} 47. fxe6 {[%clk
0:00:23.5]} 47... Ke7 {[%clk 0:00:56.2]} 48. Nf4 {[%clk 0:00:21]} 48... Ng5
{[%clk 0:00:52.6]} 49. Ng6+ {[%clk 0:00:19.1]} 49... Ke8 {[%clk 0:00:52.8]} 50.
h6 {[%clk 0:00:17.8]} 50... d4 {[%clk 0:00:50.3]} 51. Nf4 {[%clk 0:00:14.2]}
51... c5 {[%clk 0:00:46.8]} 52. b4 {[%clk 0:00:14]} 52... Ke7 {[%clk 0:00:38.4]}
53. bxc5 {[%clk 0:00:13.5]} 53... bxc5 {[%clk 0:00:38.1]} 54. Kd5 {[%clk
0:00:13.7]} 54... Kf6 {[%clk 0:00:25.6]} 55. Kxc5 {[%clk 0:00:11.8]} 55... d3
{[%clk 0:00:26]} 56. Nxd3 {[%clk 0:00:11.4]} 56... Nxe6+ {[%clk 0:00:26.2]} 57.
Kc6 {[%clk 0:00:11.7]} 57... Nd4+ {[%clk 0:00:24.4]} 58. Kb7 {[%clk 0:00:11.5]}
58... a5 {[%clk 0:00:23.2]} 59. Ne5 {[%clk 0:00:08.1]} 59... Nc2 {[%clk
0:00:18.7]} 60. Nc4 {[%clk 0:00:07]} 60... Nb4 {[%clk 0:00:18.1]} 61. a3 {[%clk
0:00:06.8]} 61... Nc2 {[%clk 0:00:17.2]} 62. a4 {[%clk 0:00:07.2]} 62... Nd4
{[%clk 0:00:15.9]} 63. Nxa5 {[%clk 0:00:07.1]} 63... Ne6 {[%clk 0:00:16.5]} 64.
Nb3 {[%clk 0:00:06.8]} 64... Nd8+ {[%clk 0:00:16.6]} 65. Kc8 {[%clk 0:00:06.4]}
65... Nc6 {[%clk 0:00:16.3]} 66. Kc7 {[%clk 0:00:06.8]} 66... Na7 {[%clk
0:00:15]} 67. Kb7 {[%clk 0:00:05]} 1-0

[Event "Late-Titled-Tuesday-Blitz-May-28-2024"]
[Site "Chess.com"]
[Date "2024.05.28"]
[Round "9"]
[White "Oleksandr_Bortnyk"]
[Black "Grebnev_A"]
[Result "1/2-1/2"]
[WhiteElo "3022"]
[BlackElo "2691"]
[TimeControl "180+1"]
[EndTime "15:45:32 PDT"]
[Termination "Game drawn - insufficient material"]

1. e4 {[%clk 0:03:00.9]} 1... c5 {[%clk 0:03:00.1]} 2. Be2 {[%clk 0:03:00]} 2...
Nc6 {[%clk 0:02:59.4]} 3. d3 {[%clk 0:03:00.3]} 3... g6 {[%clk 0:02:59.7]} 4. f4
{[%clk 0:03:01.2]} 4... Bg7 {[%clk 0:03:00.2]} 5. Nf3 {[%clk 0:03:02.1]} 5...
Nf6 {[%clk 0:03:00.9]} 6. c3 {[%clk 0:03:01.4]} 6... O-O {[%clk 0:02:59.4]} 7.
O-O {[%clk 0:02:58.8]} 7... d6 {[%clk 0:02:57.3]} 8. Kh1 {[%clk 0:02:58.8]} 8...
Rb8 {[%clk 0:02:56.2]} 9. Be3 {[%clk 0:02:59.2]} 9... b5 {[%clk 0:02:55.6]} 10.
Nbd2 {[%clk 0:02:59.7]} 10... b4 {[%clk 0:02:55.8]} 11. d4 {[%clk 0:02:59.7]}
11... bxc3 {[%clk 0:02:55]} 12. bxc3 {[%clk 0:03:00.6]} 12... cxd4 {[%clk
0:02:54.3]} 13. cxd4 {[%clk 0:03:01.5]} 13... Bd7 {[%clk 0:02:49.4]} 14. Bg1
{[%clk 0:02:57.9]} 14... Qa5 {[%clk 0:02:42.2]} 15. Nc4 {[%clk 0:02:49.8]} 15...
Qb4 {[%clk 0:02:40.6]} 16. a3 {[%clk 0:02:40.4]} 16... Qb3 {[%clk 0:02:24.8]}
17. Qxb3 {[%clk 0:02:25.8]} 17... Rxb3 {[%clk 0:02:25.7]} 18. d5 {[%clk
0:02:26.7]} 18... Nb8 {[%clk 0:02:16.9]} 19. Nfd2 {[%clk 0:02:24.5]} 19... Rb7
{[%clk 0:02:17.5]} 20. Rab1 {[%clk 0:02:19.2]} 20... Rc7 {[%clk 0:02:17.6]} 21.
Bf3 {[%clk 0:01:59.2]} 21... Rfc8 {[%clk 0:01:53.7]} 22. e5 {[%clk 0:01:58]}
22... Ne8 {[%clk 0:01:54.1]} 23. Rfe1 {[%clk 0:01:53]} 23... Na6 {[%clk
0:01:48.9]} 24. e6 {[%clk 0:01:34.6]} 24... fxe6 {[%clk 0:01:47.8]} 25. dxe6
{[%clk 0:01:35.5]} 25... Bc6 {[%clk 0:01:46.6]} 26. Bxc6 {[%clk 0:01:23.6]}
26... Rxc6 {[%clk 0:01:47.5]} 27. Na5 {[%clk 0:01:24.4]} 27... R6c7 {[%clk
0:01:44.6]} 28. Ne4 {[%clk 0:01:17.8]} 28... Nf6 {[%clk 0:01:29.1]} 29. g3
{[%clk 0:00:45.3]} 29... Nxe4 {[%clk 0:01:24.1]} 30. Rxe4 {[%clk 0:00:46.2]}
30... Bc3 {[%clk 0:01:22]} 31. Ra4 {[%clk 0:00:38.7]} 31... Nc5 {[%clk
0:01:18.4]} 32. Bxc5 {[%clk 0:00:36.4]} 32... Rxc5 {[%clk 0:01:19.3]} 33. Nb7
{[%clk 0:00:34.3]} 33... R5c7 {[%clk 0:01:19.4]} 34. Rxa7 {[%clk 0:00:27.5]}
34... Rb8 {[%clk 0:01:19.4]} 35. Rb5 {[%clk 0:00:23.1]} 35... Kg7 {[%clk
0:00:51]} 36. Kg2 {[%clk 0:00:23.3]} 36... Bd4 {[%clk 0:00:45.5]} 37. Ra4 {[%clk
0:00:23.1]} 37... Rcxb7 {[%clk 0:00:41.3]} 38. Rxb7 {[%clk 0:00:22.9]} 38...
Rxb7 {[%clk 0:00:42.2]} 39. Rxd4 {[%clk 0:00:23.4]} 39... Rb2+ {[%clk
0:00:42.9]} 40. Kf3 {[%clk 0:00:19.5]} 40... Rb3+ {[%clk 0:00:42.6]} 41. Ke4
{[%clk 0:00:08.8]} 41... Rxa3 {[%clk 0:00:42.8]} 42. Kd5 {[%clk 0:00:09.6]}
42... Kf6 {[%clk 0:00:41.4]} 43. Re4 {[%clk 0:00:10.2]} 43... Ra2 {[%clk
0:00:39]} 44. h3 {[%clk 0:00:03]} 44... Ra3 {[%clk 0:00:38.9]} 45. g4 {[%clk
0:00:03.6]} 45... Rxh3 {[%clk 0:00:39.1]} 46. Kc6 {[%clk 0:00:04.3]} 46... Ra3
{[%clk 0:00:35.2]} 47. Kd7 {[%clk 0:00:03.6]} 47... Ra7+ {[%clk 0:00:35.5]} 48.
Ke8 {[%clk 0:00:03.9]} 48... h5 {[%clk 0:00:30.9]} 49. g5+ {[%clk 0:00:02.1]}
49... Kf5 {[%clk 0:00:30.9]} 50. Re1 {[%clk 0:00:02.6]} 50... h4 {[%clk
0:00:29.8]} 51. Kf7 {[%clk 0:00:03.2]} 51... h3 {[%clk 0:00:27.2]} 52. Rh1
{[%clk 0:00:03.4]} 52... Ra3 {[%clk 0:00:19.2]} 53. Kxe7 {[%clk 0:00:03.5]}
53... Re3 {[%clk 0:00:19.9]} 54. Kf7 {[%clk 0:00:02.8]} 54... Rxe6 {[%clk
0:00:18.4]} 55. Rxh3 {[%clk 0:00:03.6]} 55... Re4 {[%clk 0:00:13.2]} 56. Rh6
{[%clk 0:00:03.8]} 56... Rxf4 {[%clk 0:00:11.5]} 57. Rxg6 {[%clk 0:00:03.9]}
57... Ke4+ {[%clk 0:00:10.6]} 58. Rf6 {[%clk 0:00:03.1]} 58... Rg4 {[%clk
0:00:11.2]} 59. g6 {[%clk 0:00:03.1]} 59... d5 {[%clk 0:00:11.8]} 60. g7 {[%clk
0:00:03]} 60... Rxg7+ {[%clk 0:00:12.4]} 61. Kxg7 {[%clk 0:00:03.9]} 61... d4
{[%clk 0:00:13.3]} 62. Re6+ {[%clk 0:00:04.3]} 62... Kf3 {[%clk 0:00:13.7]} 63.
Rd6 {[%clk 0:00:04.3]} 63... Ke3 {[%clk 0:00:13.9]} 64. Re6+ {[%clk 0:00:03.6]}
64... Kf3 {[%clk 0:00:14.5]} 65. Rd6 {[%clk 0:00:03.3]} 65... Ke3 {[%clk
0:00:14.8]} 66. Kf6 {[%clk 0:00:04.2]} 66... d3 {[%clk 0:00:15.7]} 67. Ke5
{[%clk 0:00:04.4]} 67... d2 {[%clk 0:00:15.3]} 68. Rxd2 {[%clk 0:00:03.2]} 68...
Kxd2 {[%clk 0:00:15.7]} 1/2-1/2